{"text_format":"1","workbook":"xlsx","n_sheets":4,"sheets":["Instrucciones","Ingreso de Datos","Data ","Sheet1"],"not_rendered":{"charts":0,"images":1,"macros":1,"external_links":0,"defined_names":0,"comments":0,"pivot_tables":0},"unopened":[],"bounds":{"document_bytes":16777216,"sheet_cells":100000,"rows_first":2000,"rows_last":500,"rows_between":2000,"halvings":0,"cell_chars":16384,"cell_head_chars":4096},"cells_cut":0,"cells_raw":0,"read":"whole","date_system":"1900"}

{"sheet":"Instrucciones","index":0,"n_rows":44,"n_cols":9,"rows_kept":44,"cut":false,"hidden":false,"merged":[[8,1,8,14],[11,1,11,14],[17,1,17,14],[18,1,18,14],[10,1,10,14],[16,1,16,14],[14,1,14,14],[13,1,13,14],[12,1,12,14],[3,1,3,14],[4,1,4,14],[5,1,5,14],[6,1,6,14],[7,1,7,14],[30,1,30,14],[40,1,40,7],[40,8,40,14],[41,1,41,7],[41,8,41,14],[32,1,32,14],[33,1,33,14],[34,2,34,13],[35,2,35,13],[38,1,38,14],[39,1,39,7],[39,8,39,14],[19,1,19,14],[20,1,20,14],[21,1,21,14],[27,1,27,14],[29,1,29,14],[22,1,22,14],[23,1,23,14],[25,1,25,14],[28,1,28,14]]}
[]
[null,"Herramienta de Riesgo de la Cobertura Forestal"]
[]
[null,"INTRODUCCIÓN"]
[null,"Bajo la el Protocolo Forestal para México V2.0, la Reserva únicamente registrará proyectos que generen remociones de GEI que se determine sean adicionales a lo que hubiera sucedido en ausencia del mercado de carbono. Junto con las consideraciones legales,  la Prueba del Estándar de Desempeño evalúa criterios relacionados con la actividad del proyecto para identificar que el financiamiento de carbono proporciona un elemento importante para contrarrestar los riesgos de deforestación y degradación en el Área de Actividad. "]
[null,"\nLos impulsores de la deforestación y degradación pueden ser complejos. Esta herramienta supone que ciertas características regulatorias (por ej., limitaciones en el aprovechamiento), económicas (por ej., acceso a mercados), sociales (por ej., niveles de población) y biofísicas (por ej., características del suelo) pueden aumentar o disminuir el riesgo de deforestación y degradación forestal en un Área de Actividad.\n"]
[]
[null,"DESCRIPCIÓN"]
[null,"La herramienta se divide en tres secciones que se describen a continuación: "]
[null,"Sección 1"]
[null,"La primera sección está relacionada con el manejo forestal sustentable. Si un Área de Actividad tiene un Programa de Manejo Forestal autorizado por la SEMARNAT, el Área de Actividad pasa la Prueba del Estándar de Desempeño. "]
[null,"Si no se cuenta con un PMF, se deberá de continuar con el cuestionario. "]
[null,"La segunda parte de está sección está relacionada con el estado de protección del área. Bajo el PFM, un area se considera bajo protección unicamente si NO se permite el aprovechamiento forestal comercial o uso productivo.   "]
[null,"La protección puede considerarse de largo plazo donde se tienen decretos, leyes o reglamentos estipulados (por ejemplo, restricciones puntuales dentro de un Área Natural Protegida o una veda forestal), o temporales donde la protección se limita a un periodo te tiempo determinado (por ejemplo, participación en el Programa de Pago por Servicios Ambietales Hidrológicos de CONAFOR)."]
[null,"Esta herramienta asume que en estas áreas el riesgo de degradación y deforestación es menor que en áreas sin protección legal y por lo tanto el Área de Actividad deberá de demostrar, sigue habiendo riesgos importantes de deforestación/degradación y que el proyecto de captura de carbono ayudará con actividades puntuales a reducir estos riesgos, con lo cual se espera puedan aumentar los acervos de carbono en sitio"]
[null,"Sección 2"]
[null,"Las preguntas de estas secciones están relacionadas con restricciones legales, actividades agropecuarias y presion urbana. "]
[null,"La herramienta asume que existe una renta potencial asociada a cada posible uso de suelo de cada terreno, es decir, la tierra tenderá a dedicarse a la actividad que produce la renta más alta. Bajo estas consideraciones la herramienta se basa en un análisis de literatura donde se asume que*:"]
[null,"1. El fácil acceso a mercados aumenta el riesgo de conversión. Un estudio del Banco Mundial indica que cuando el acceso al camino es inmediato y el tiempo de traslado es de 1 min, existe una probabilidad del 63% de uso agrícola, de la cual el 49.2% sería con fines comerciales y 13.2% de semi-subsistencia. Si existe una distancia mayor a 10 km al camino más cercano, existe una probabilidad del 98% de que la tierra mantenga su cobertura natural. Si existe agricultura, esta será principalmente de subsistencia. "]
[null,"\n2. El riesgo de conversión es mayor cuando las prácticas agropecuarias se llevan a cabo con fines comerciales. Cuando hay un aumento en el precio de los productos, el riesgo de conversión es mayor. El estudio del Banco Mundial indica que un aumento del 1% en el precio de los productos agrícolas puede aumentar la probabilidad de deforestación en un 0.24%. \n"]
[null,"3.  Áreas de Actividad cerca de ciudades extensas tienen un mayor riesgo de conversión de expansión y desarrollo urbano que aquellas en zonas rurales. "]
[null,"4. Aquellas áreas que reciben subsidios agropecuarios, el riesgo de conversión es más alto."]
[null,"5. En cuanto a las características biofísicas, es más probable que en un terreno con poca pendiente se lleven a cabo actividades agrícolas, en comparación con una mayor pendiente. "]
[null,"6. En áreas previamente degradadas, es necesario financiar actividades puntuales de manejo para restaurar estas área y volverlas más resilientes a eventos naturales como incendios, plagas y huracanes. "]
[]
[null,"El Dueño Forestal deberá de responder las Secciones 2 y 3. Si se considera que el Área de Actividad aún no pasa la Prueba del Estándar de Desempeño, deberá de continuar con la Sección 4, que está relacionada con la degradación del área. "]
[null,"Sección 3"]
[null,"El Dueño Forestal deberá de utilizar los lineamientos proporcionados en el PFM V2.0 (Apéndice C) para calcular la cobertura de copa del Área de Actividad (histórica y reciente), la cual deberá de ingresarse en esta hoja de cálculo."]
[null,"La Herramienta compara la cobertura de copa del Área de Actividad en dos periodos de tiempo para ver si hay una tendencia negativa. Si el cambio porcentual normalizado a 10 años es mayor al 10%, se considera que el área esta sufriendo degradación y por lo tanto el Área de Actividad pasa la prueba del estándar de desempeño. "]
[null,"A su vez, el Dueño Forestal deberá de proporcionar a la Reserva las actividades que ayduarán a detener las causas de degradación a partir del proyecto de captura de carbono forestal"]
[null,"* Información obtenida de World Bank (1995) Roads, Lands, Markets and Deforestation. Policy Research Department. Environment, Infrastructure and Agriculutre Division. "]
[]
[null,"REQUISITOS"]
[null,"Antes de proceder favor de tomar en cuenta las siguientes consideraciones."]
[null,null," Las Áreas de Actividad de Reforestación, Sistemas Agroforestales, Sistemas Silvopastoriles, Bosques Urbanos Pequeños  y  Bosques Urbanos Grandes están exentas del uso de esta herramienta."]
[null,null," Las respuestas deberán de ser lo más conservadoras posibles y reflejar la realidad del sitio. Las respuestas serán verificada durante la primera verificación. Si las respuestas no coinciden con la realidad se deberá de volver a realizar el ejercicio para asegurar que el Área de Actividad cumple con la Prueba del Estándar de Desempeño del PFM V2.0"]
[]
[]
[null,"INSTRUCCIONES"]
[null,"\nPaso 1. Identificar si el Área de Actividad está exenta de utilizar esta herramienta\n",null,null,null,null,null,null,"Unicamente Áreas de Actividad de Restauración necesitan utilizar esta herramienta. "]
[null,"Paso 2.  Responder las preguntas en el orden pre-establecido. ",null,null,null,null,null,null,"Cada pregunta tiene un botón que brinda más información para poder identificar la respuesta más adecuada. Si en el Área de Actividad no aplica alguna de las preguntas, favor de seleccionar No aplica.   "]
[null,"Paso 3. Revisar si el proyecto pasa la Prueba del Estándar de Desempeño. ",null,null,null,null,null,null,"Se considera que un Área de Actividad pasa la Prueba del Estándar de Desempeño si se cumple con los criterios de esta Herramienta"]
[]
[null,"Si se tienen cualquier pregunta o comentario favor de mandar un correo a policy@climateactionreserve.org"]

{"sheet":"Ingreso de Datos","index":1,"n_rows":33,"n_cols":14,"rows_kept":33,"cut":false,"hidden":false,"merged":[[12,17,12,25],[13,17,13,25],[15,1,15,9],[12,1,12,6],[13,1,13,6],[1,17,1,25],[4,14,4,22],[9,1,10,6],[8,17,10,25],[1,12,1,16],[1,1,1,9],[8,9,8,10],[8,7,8,8],[8,11,8,12],[8,13,8,14],[2,1,2,11],[18,1,18,11],[4,1,4,6],[5,1,5,6],[32,1,32,11],[14,1,14,6]]}
["Sección 1",null,"Aprovechamiento Maderable en el Área de Actividad"]
[1.1000000000000001,"¿El Área de Actividad está bajo un Programa de Manejo Forestal activo autorizado por la SEMARNAT?"]
[null,{"$f":"IF('Data '!E6>0,\"El Area de Actividad cumple con la Prueba del Estándar de Desempeño, no es necesario continuar con el cuestionario\",\"Favor de continuar con el cuestionario\")","v":"Favor de continuar con el cuestionario"}]
[]
[1.2,"¿El Área de Actividad está bajo algún esquema de protección a largo plazo que NO permita el aprovechamiento comercial (por ej., Parque Nacional, Veda Forestal)? "]
[1.3,"¿El Área de Actividad está bajo algún esquema de protección temporal que NO permita el aprovechamiento comercial (por ej., Programa de Pago por Servicios Ambientales de CONAFOR)? "]
[]
["Sección 2 - Riesgo de cambio de uso de suelo de forestal a no forestal (crecimiento urbano y actividades agropecuarias)"]
[null,null,null,null,null,null,null,"0 - 15 Minutos",null,"16 - 60 Minutos",null,"61 - 120 Minutos",null,"> 2 horas "]
[2.1," Favor de estimar el tamaño de la población, según el tiempo correspondiente que tardaría una persona en llegar del camino más cercano al Área de Actividad al poblado identificado. "]
[]
[]
[2.2000000000000002,"¿Las actividades agropecuarias que se llevan a cabo fuera del AA (considerando un radio de 1 km del límite geográfico definido) son con fines de subsistencia o comerciales?"]
[2.2999999999999998,"Si las actividades agropecuarias son con FINES COMERCIALES, ¿el precio del producto principal ha incrementado, mantenido igual o disminuido en el último año?"]
[2.4,"¿Las actividades agropecuarias que se llevan a cabo fuera de las AA (considerando un radio de 1 km del límite geográfico definido y dentro del predio del Dueño Forestal) reciben subsidios del gobierno para llevar a cabo actividades agrícolas o pecuarias?"]
[2.5,"¿Cómo se caracteriza la pendiente en el Área de Actividad?"]
[]
[]
[null,{"$f":"IF('Data '!E6>0,\"El Área de Actividad pasa la Prueba del Estándar de Desempeño\",IF('Data '!E15+'Data '!E22>0,\"El Area de Actividad pasa la Prueba del Estándar de Desempeño, no es necesario continuar con el cuestionariol\",\"Favor de continuar con el cuestionario\"))","v":"Favor de continuar con el cuestionario"}]
[]
["Sección 3 - Análisis de Degradación a partir de la Cobertura de Copa"]
[]
[3.1,"¿Cuál es el estimado del promedio de cobertura de copa (porcentual) calculado con una imagen satelital HISTORICA? (Ver Apéndice C del PFM)",null,null,null,null,null,null,"%"]
[]
[3.2,"¿Cuál es el año de la imagen histórica?"]
[]
[3.3,"¿Cuál es el estimado del promedio (porcentual) de cobertura de copa calculado con una imagen satelital ACTUAL? (Ver Apéndice C del PFM)",null,null,null,null,null,null,"%"]
[]
[3.4,"¿Cuál es el año de la imagen más reciente?"]
[]
[null,"Cambio porcentual ",null,null,null,null,null,{"$f":"'Data '!C88","v":{"$error":"#DIV/0!"}}]
[]
[null,{"$f":"IF('Data '!E6>0,\"El Área de Actividad pasa la Prueba del Estándar de Desempeño\",IF('Data '!E15+'Data '!E22>0,\"El Área de Actividad pasa la Prueba del Estándar de Desempeño\",IF('Data '!E82>0,\"El Área de Actividad pasa la Prueba del Estándar de Desempeño\",IF('Data '!C90>0,\"El Área de Actividad pasa la Prueba del Estándar de Desempeño\",\"El Área de Actividad NO cumple con los criterios mínimos para pasar la Prueba del Estándar de Desempeño bajo el PFM V2.0\"))))","v":{"$error":"#DIV/0!"}}]

{"sheet":"Data ","index":2,"n_rows":90,"n_cols":19,"rows_kept":90,"cut":false,"hidden":true,"merged":[[1,1,1,3],[18,1,18,3],[78,1,78,3],[7,1,7,3]]}
[]
[null,"Aprovechamiento Maderable"]
[]
[null,null,"Valores",null,null,null,"PMF","Valor"]
[null,"Programa de Manejo Forestal",2,"Si","Total (1)",null,"Si",1]
[null,"Total",{"$f":"IF(C5=1,H5,H6)","v":-0.8},"No",{"$f":"C6","v":-0.8},null,"No",-0.8]
[]
[null,"Proteccion a corto y largo plazo"]
[null,null,null,null,null,null,"Largo plazo","Valor"]
[null,null,"Valores",null,null,null,"Sin Protección",0]
[null,"Protección Largo Plazo",2,null,null,null,"Bajo Protección",-0.8]
[null,"Protección Corto Plazo",2]
[null,null,null,null,null,null,"Corto plazo","Valor"]
[null,"Sin PFM, protección largo plazo",{"$f":"IF(C11=1,H11,H10)","v":0},null,"Total (2)",null,"Sin Protección",0]
[null,"Valor sin PMF, protección a corto plazo",{"$f":"IF(C12=1,H15,H16)","v":0},null,{"$f":"IF(C5=1,C15+C14,C14+C15+C6)","v":-0.8},null,"Bajo Protección",-0.25]
[]
[]
[]
[null,"Cambio de uso de suelo (deforestación)",null,null,{"$f":"E15+E22","v":-0.60000000000000009}]
[null,null,null,null,null,null,"Values",1,2,3,4,5,6,7]
[null,"Tiempo","Tamano de Poblacion",null,"Total (3)",null,"Tiempo/Habitantes","< 2,499","2,500 - 29,999","30,000 - 99,999","100,000 - 249,999","250,000 - 499,999","> 500,000","No Aplica"]
[null,"0 15 min","< 2,499",null,{"$f":"E40+E49+E67+E75","v":0.2},null,"0 15 min",{"$f":"I22/3","v":1.1111111111111112E-2},{"$f":"J22/3","v":3.3333333333333333E-2},{"$f":"K22/3","v":9.9999999999999992E-2},0.3,0.4,0.5,0]
[null,"15 a 60 min","2,500 - 29,999",null,null,null,"16 to 60",{"$f":"H22/3","v":3.7037037037037038E-3},{"$f":"I22/3","v":1.1111111111111112E-2},3.3333333333333333E-2,9.9999999999999992E-2,0.13333333333333333,0.16666666666666666,0]
[null,"1 a 2 horas","30,000 - 99,999",null,null,null,"61 to 120",{"$f":"H23/4","v":9.2592592592592596E-4},{"$f":"I23/4","v":2.7777777777777779E-3},8.3333333333333332E-3,{"$f":"K23/5","v":1.9999999999999997E-2},3.3333333333333333E-2,4.1666666666666664E-2,0]
[null,"2 a 5 horas","100,000 - 249,999",null,null,null,"Mas 2 horas",{"$f":"H24/5","v":1.851851851851852E-4},{"$f":"I24/5","v":5.5555555555555556E-4},1.6666666666666666E-3,3.9999999999999992E-3,6.6666666666666662E-3,8.3333333333333332E-3,0]
[null,null,"250,000 - 499,999"]
[null,null,"> 500,000"]
[null,null,"No aplica"]
[]
[null,"Tamano poblacion/ 0 - 15",7]
[null,"Valor",{"$f":"HLOOKUP(C30,H20:N25,3,0)","v":0}]
[null,null,null,null,null,null,null,null,null,null,null,null,null,null,"Comercial ","Aumentado","Subsidio","Plano",{"$f":"K44+H61+I70","v":0.65}]
[null,"Tamaño poblacion/ 16-60",7,null,null,null,null,null,null,null,null,null,null,null,"Comercial ","Mantenido","Subsidio","Plano",{"$f":"J44+H61+I70","v":0.35000000000000003}]
[null,"Valor",{"$f":"HLOOKUP(C33,H20:N25,4,0)","v":0},null,null,null,null,null,null,null,null,null,null,null,"Comercial ","Aumentado","Subsidio","Medio",{"$f":"K44+H61+I71","v":0.45}]
[null,null,null,null,null,null,null,null,null,null,null,null,null,null,"Comercial ","Mantenido","Subsidio","Medio",{"$f":"J44+H61+I71","v":0.15000000000000002}]
[null,"Tamaño poblacion/ 61-120",7,null,null,null,null,null,null,null,null,null,null,null,"Comercial ","Aumentado","Sin sub","Plano",{"$f":"K44+I70","v":0.60000000000000009}]
[null,"Valor",{"$f":"HLOOKUP(C36,H20:N25,5,0)","v":0},null,null,null,null,null,null,null,null,null,null,null,"Comercial ","Mantenido","Sin sub","Plano",{"$f":"J44+I70","v":0.30000000000000004}]
[null,null,null,null,null,null,null,null,null,null,null,null,null,null,"Comercial ","Aumentado","Sin sub","Medio",{"$f":"K44+I71","v":0.4}]
[null,"Tamaño poblacion/ 121-180",7,null,"Total",null,null,null,null,null,null,null,null,null,"Comercial ","Mantenido","Sin sub","Medio",{"$f":"J44+I71","v":0.1}]
[null,"Valor",{"$f":"HLOOKUP(C39,H20:N25,6,0)","v":0},null,{"$f":"C31+C34+C37+C40","v":0},null,null,null,null,null,null,null,null,null,"Subsistencia",null,"Subsidio","Plano",{"$f":"H61+I70","v":0.25}]
[null,null,null,null,null,null,null,null,null,null,null,null,null,null,"Subsistencia",null,"Subsidio","Medio",{"$f":"H61+I71","v":0.05}]
[null,"Tipo de Agricultura","Precios ",null,null,null,"Tipo de Agricultura/Precios","Subsistencia","Disminuido","Mantenido Igual","Aumentado",null,null,null,"Subsistencia",null,"Sin sub","Plano",{"$f":"I70","v":0.2}]
[null,"Subsistencia","No aplica/ subsistencia",null,null,null,"Subsistencia",0,0,0,0.05,null,null,null,"Subsistencia",null,"Sin sub","Medio",{"$f":"I71","v":0}]
[null,"Comercial","Disminuido",null,null,null,"Comercial",0,0,0.1,0.4]
[null,"No aplica","Mantenido Igual"]
[null,null,"Aumentado",null,null,null,"Precios ","Precios ","Tipo de Agricultura","Tipo de Agricultura","Unique","Multiplier"]
[null,null,null,null,null,null,"Subsistencia",1,"Subsistencia",1,{"$f":"H47&\"-\"&J47","v":"1-1"},{"$f":"H43","v":0}]
[null,"Tipo de Agricultura",3,null,"Total",null,"Disminuido",2,"Subsistencia",1,{"$f":"H48&\"-\"&J48","v":"2-1"},{"$f":"I43","v":0}]
[null,"Precios",1,null,{"$f":"C50","v":0},null,"Mantenido Igual",3,"Subsistencia",1,"3-1",{"$f":"J43","v":0}]
[null,"Valor",{"$f":"VLOOKUP(C49&\"-\"&C48,K47:L58,2,0)","v":0},null,null,null,"Aumentado",4,"Subsistencia",1,"4-1",{"$f":"K43","v":0.05}]
[null,null,null,null,null,null,"Subsistencia",1,"Comercial",2,"1-2",{"$f":"H44","v":0}]
[null,null,null,null,null,null,"Disminuido",2,"Comercial",2,"2-2",{"$f":"I44","v":0}]
[null,null,null,null,null,null,"Mantenido Igual",3,"Comercial",2,"3-2",{"$f":"J44","v":0.1}]
[null,null,null,null,null,null,"Aumentado",4,"Comercial",2,"4-2",{"$f":"K44","v":0.4}]
[null,null,null,null,null,null,"Subsistencia",1,"NA",3,"1-3",0]
[null,null,null,null,null,null,"Disminuido",2,"NA",3,"2-3",0]
[null,null,null,null,null,null,"Mantenido Igual",3,"NA",3,"3-3",0]
[null,null,null,null,null,null,"Aumentado",4,"NA",3,"4-3",0]
[]
[null,"Subsidios",null,null,null,null,"Subsidios"]
[null,"Si ",null,null,null,null,"Con Subsidio",0.05]
[null,"No",null,null,null,null,"Sin Subsidio",0]
[null,"No Aplica"]
[]
[]
[null,"Subsidio",3,null,"Total"]
[null,"Valor",{"$f":"IF(C66=1,H61,H62)","v":0},null,{"$f":"C67","v":0}]
[]
[null,"Pendiente",null,null,null,null,"Pendiente","Unique","Multiplier"]
[null,"Plano",null,null,null,null,"Plano",1,0.2]
[null,"Media",null,null,null,null,"Media",2,0]
[null,"Empinado",null,null,null,null,"Empinado",3,-0.2]
[]
[null,"Pendiente",1,null,"Total"]
[null,"Valor",{"$f":"(VLOOKUP(C74,H70:I76,2,0))","v":0.2},null,{"$f":"C75","v":0.2}]
[]
[]
[]
[null,"Cobertura de Copa"]
[]
[null,"Cobertura histórica",{"$f":"'Ingreso de Datos'!H23/100","v":0},null,"Total (4)",null,"Tendencia Negativa",0.5]
[null,"Cobertura reciente",{"$f":"'Ingreso de Datos'!H27/100","v":0},null,{"$f":"C90","v":{"$error":"#DIV/0!"}},null,"Tendencia positiva",0]
[null,"Diferencia (cobertura)",{"$f":"C82-C81","v":0}]
[null,"Cambio porcentual",{"$f":"C83/C81","v":{"$error":"#DIV/0!"}}]
[null,"Año (1)",{"$f":"'Ingreso de Datos'!H29","v":0}]
[null,"Año (2)",{"$f":"'Ingreso de Datos'!H25","v":0}]
[null,"Diferencia (tiempo)",{"$f":"C85-C86","v":0}]
[null,"Cambio porcentual 10 años",{"$f":"(C84/C87)*10","v":{"$error":"#DIV/0!"}}]
[null,"Trend",-0.1]
[null,"Valor",{"$f":"IF(C88<C89,H81,H82)","v":{"$error":"#DIV/0!"}}]

{"sheet":"Sheet1","index":3,"n_rows":0,"n_cols":0,"rows_kept":0,"cut":false,"hidden":true,"merged":[]}